bitfinex-derivatives/quotes_ETHF0:USTF0_20251203
["timestamp","ask_amount","ask_price","bid_price","bid_amount"]
[1764783044709,1.3095,3106.7,3106.6,1.3205]
[1764783045006,2.6382,3106.7,3106.2,3.2078]
[1764783046308,3.03798976,3106.9,3106.8,1.3205]
[1764783046503,1.3095,3106.9,3106.8,1.3205]
[1764783046904,1.72848976,3107.0,3106.8,2.5816]
[1764783047104,0.00389723,3107.2,3106.9,1.3205]
[1764783047105,1.72848976,3107.1,3106.9,1.3205]
[1764783047709,1.3095,3107.0,3106.9,1.3205]
[1764783048108,1.3095,3106.8,3106.7,0.00482904]
[1764783048818,2.6382,3106.8,3106.7,0.00482904]
[1764783049113,4.36668976,3106.8,3106.7,0.00482904]
[1764783049314,2.6382,3106.8,3106.7,0.00482904]
[1764783050015,1.3095,3106.3,3106.2,3.2078]
[1764783050208,2.6382,3106.3,3106.2,3.2078]
[1764783056607,2.96387907,3106.3,3106.2,3.2078]
[1764783056808,1.63517907,3106.3,3106.2,5.7894]
[1764783057218,0.32567907,3106.3,3106.2,5.7894]
[1764783057417,0.00482904,3106.6,3106.5,2.5816]
[1764783059513,1.31432904,3106.6,3106.5,2.5816]
[1764783059717,2.6382,3106.3,3106.2,3.2078]
[1764783060217,0.94412,3106.5,3106.2,5.7894]
[1764783060520,1.6351694,3106.4,3106.3,1.3205]
[1764783060717,2.6382,3106.3,3106.2,3.2078]
[1764783061413,2.96400408,3106.3,3106.2,3.2078]
[1764783061610,1.63530408,3106.3,3106.2,3.2078]
[1764783061821,1.63530408,3106.3,3106.2,4.5283]
[1764783062116,2.96400408,3106.3,3106.2,3.2078]
[1764783062317,3.4214,3106.0,3105.9,0.00482904]
[1764783062518,7.11594408,3106.0,3105.9,1e-08]
[1764783063314,3.90814408,3106.0,3105.9,1e-08]
[1764783063826,0.00482904,3106.6,3106.5,2.486]
[1764783064117,2.52572904,3106.6,3106.0,3.2078]
[1764783064316,0.00482904,3106.6,3106.5,2.486]
[1764783065619,2.41902904,3106.6,3106.5,2.486]
[1764783065820,3.2636,3106.5,3106.4,3.2078]
[1764783066225,3.2636,3106.5,3106.4,4.385]
[1764783066226,1.9498,3106.5,3106.4,4.385]
[1764783066526,3.2636,3106.5,3106.4,4.385]
[1764783067022,3.2636,3106.5,3106.4,3.2078]
[1764783067223,1.9498,3106.5,3106.4,4.385]
[1764783067627,3.2636,3106.5,3106.4,4.385]
[1764783068022,3.2636,3106.5,3106.4,3.2078]
[1764783068525,1.2071,3106.0,3105.9,3.20780001]
[1764783068724,0.7427,3106.5,3105.9,5.69380001]
[1764783069121,2.5209,3106.0,3105.9,4.38500001]
[1764783069316,3.2636,3106.0,3105.9,3.20780001]
[1764783070124,2.5209,3105.4,3105.3,3.2078]
[1764783070429,1.2071,3105.4,3105.3,4.385]
[1764783070731,2.5209,3105.4,3105.3,3.2078]
[1764783071430,2.5209,3105.4,3105.3,4.385]
[1764783071631,2.5209,3105.4,3105.3,3.2078]
[1764783072223,1.2071,3105.4,3105.3,5.6938]
[1764783072430,0.16095,3105.9,3105.3,5.6938]
[1764783072925,3.2078,3106.3,3105.3,5.6938]
[1764783073121,3.2078,3106.3,3106.2,2.486]
[1764783073322,5.7287,3106.3,3105.5,1.92323058]
[1764783074332,5.7287,3106.3,3105.6,3.788]
[1764783075826,0.32568165,3106.2,3105.6,3.788]
[1764783076130,1.53278165,3106.2,3106.1,1.1772]
[1764783076334,2.84658165,3106.2,3105.6,3.788]
[1764783076525,2.5209,3106.2,3105.6,3.788]
[1764783077129,1.2071,3105.7,3105.6,4.9652]
[1764783077326,2.5209,3105.7,3105.6,3.788]
[1764783078429,2.8466526,3105.7,3105.6,3.788]
[1764783080232,2.8466526,3105.7,3105.1,0.00376717]
[1764783080533,0.3257526,3105.6,3105.1,0.00376717]
[1764783080734,3.36876,3105.8,3105.1,0.00376717]
[1764783081038,0.3256621,3105.7,3105.1,0.00376717]
[1764783081629,2.8465621,3105.7,3105.1,0.00376717]
[1764783081827,2.5209,3105.6,3105.1,0.00376717]
[1764783084135,1.2071,3105.6,3105.5,3.2584]
[1764783084633,2.5209,3105.6,3105.5,3.2584]
[1764783084933,1.2071,3105.6,3105.5,2.486]
[1764783085133,1.2071,3105.6,3105.5,3.2584]
[1764783085336,2.5209,3105.6,3105.5,2.486]
[1764783085532,2.5209,3105.6,3105.5,1.1772]
[1764783085730,2.5209,3105.1,3105.0,0.00482904]
[1764783085932,5.7287,3105.1,3105.0,0.00482904]
[1764783086234,6.05422504,3105.1,3105.0,0.00482904]
[1764783086628,6.05422504,3105.1,3105.0,1.18202904]
[1764783086823,6.05408633,3105.1,3105.0,0.00786429]
[1764783087223,5.7287,3105.1,3105.0,0.00786429]
[1764783089229,6.0539501,3105.1,3105.0,0.00786429]
[1764783090434,6.2149401,3105.1,3105.0,0.00786429]
[1764783090634,1.2071,3104.2,3104.1,5.6938]
[1764783090838,2.5209,3104.2,3104.1,4.385]
[1764783091036,1.2071,3104.1,3104.0,1.9541]
[1764783091237,3.36881,3104.7,3104.0,1.9541]
[1764783091633,3.37607252,3104.7,3104.0,1.96138012]
[1764783092932,1.2071,3104.1,3104.0,3.13858012]
[1764783093137,2.5209,3104.1,3104.0,2.49328012]
[1764783093332,3.21506252,3104.7,3104.0,3.29388012]
[1764783094131,0.16102,3104.5,3104.0,3.29388012]
[1764783094338,3.21506252,3104.7,3104.0,3.29388012]
[1764783096040,4.45196252,3104.7,3104.6,1.2422]
[1764783096246,3.21506252,3104.7,3104.6,2.4692]
[1764783096839,4.45196252,3104.7,3104.6,2.4692]
[1764783097038,3.21506252,3104.7,3104.6,2.4692]
[1764783097534,4.45196252,3104.7,3104.6,2.4692]
[1764783097734,5.69576252,3104.7,3104.6,2.4692]
[1764783097933,2.5264,3104.6,3104.5,1.2373]
[1764783098346,1.2711,3104.6,3104.5,3.2166]
[1764783099042,2.5264,3104.6,3104.5,1.2373]
[1764783099741,2.5264,3104.6,3104.0,0.80788012]
[1764783100247,3.21506252,3104.7,3104.6,2.4974]
[1764783102348,0.00726252,3104.7,3104.6,2.4974]
[1764783103148,2.53366252,3104.7,3104.6,2.4974]
[1764783103338,2.5264,3104.6,3104.5,1.2373]
[1764783103740,2.5264,3104.6,3104.1,3.2078]
[1764783104147,1.2711,3104.2,3104.1,5.7052]
[1764783104438,2.5264,3104.2,3104.1,5.7052]
[1764783104642,2.5264,3104.2,3104.1,4.4451]
[1764783104943,1.2711,3104.2,3104.1,5.7052]
[1764783105847,2.5264,3104.2,3104.1,3.2078]
[1764783106037,2.5264,3104.2,3104.1,4.4451]
[1764783107245,2.5264,3104.2,3104.1,5.7052]
[1764783108449,2.5264,3104.2,3104.1,4.4451]
[1764783108653,2.5264,3104.1,3104.0,0.00728012]
[1764783109251,2.5264,3104.1,3104.0,1.24458012]
[1764783110146,2.5264,3104.1,3104.0,0.00728012]
[1764783110957,2.5264,3103.0,3102.5,0.7192]
[1764783111348,2.5264,3103.0,3102.9,1.2373]
[1764783111649,2.5264,3103.0,3102.5,0.7192]
[1764783111854,2.5264,3103.0,3102.5,0.72322715]
[1764783112053,2.5264,3103.0,3102.9,1.2373]
[1764783113960,2.5264,3103.0,3102.9,2.4974]
[1764783115558,1.27592904,3103.1,3103.0,3.2166]
[1764783115758,0.00482904,3103.1,3103.0,3.2166]
[1764783118958,0.00482904,3103.1,3103.0,7.0046]
[1764783119462,2.53122904,3103.1,3103.0,3.788]
[1764783119963,2.53122904,3103.1,3103.0,6.2854]
[1764783120170,0.00482904,3103.1,3103.0,7.0046]
[1764783120765,1.27592904,3103.1,3103.0,7.0046]
[1764783120967,1.27592904,3103.1,3103.0,3.788]
[1764783120968,2.53122904,3103.1,3103.0,3.788]
[1764783121171,2.53122904,3103.1,3103.0,5.0253]
[1764783122477,2.53122904,3103.1,3103.0,6.2854]
[1764783123180,0.00482904,3103.1,3103.0,7.0046]
[1764783123477,3.2078,3104.1,3104.0,3.0715]
[1764783125179,0.00482904,3104.4,3104.0,3.0715]
[1764783125480,0.00482904,3104.4,3104.3,1.0994]
[1764783125481,2.36482904,3104.4,3104.3,1.0994]
[1764783125679,1.15572904,3104.4,3104.3,2.3627]
[1764783125980,0.00482904,3104.4,3104.3,2.3627]
[1764783128275,2.36482904,3104.4,3104.1,3.2078]
[1764783128476,1.15572904,3104.4,3104.3,2.3627]
[1764783128778,0.00482904,3104.4,3104.3,2.3627]
[1764783130278,0.00243348,3104.7,3104.6,2.3627]
[1764783131576,0.00243348,3104.7,3104.6,6.1507]
[1764783131782,3.2078,3105.9,3105.0,0.7088]
[1764783131974,2.36,3105.1,3105.0,1.0994]
[1764783132280,2.36,3105.1,3104.5,3.9166]
[1764783132574,1.31188,3105.4,3105.3,2.3627]
[1764783132780,2.52346243,3105.4,3105.3,1.10254872]
[1764783133576,2.52346243,3105.4,3105.3,0.00314872]
[1764783133971,0.00248243,3105.4,3105.3,2.36584872]
[1764783135080,1e-08,3105.4,3105.3,5.57364872]
[1764783135386,1e-08,3105.4,3105.3,1.26644872]
[1764783135590,2.36000001,3105.4,3105.3,1.10254872]
[1764783135780,1.15090001,3105.4,3105.3,2.36584872]
[1764783136184,1e-08,3105.4,3105.3,1.26644872]
[1764783136878,5.56780001,3105.4,3105.3,0.00314872]
[1764783137080,2.36000001,3105.4,3105.3,1.10254872]
[1764783139987,2.36000001,3105.4,3105.3,2.36584872]
[1764783140781,1.15090001,3105.4,3105.3,2.36584872]
[1764783140978,1e-08,3105.4,3105.3,2.36584872]
[1764783141482,5.56780001,3105.4,3105.3,2.36584872]
[1764783141781,5.72878001,3105.4,3105.3,0.00314872]
[1764783143187,5.72878001,3105.4,3104.7,3.2078]
[1764783143188,1.1509,3104.1,3104.0,3.07632904]
[1764783143395,2.36,3104.1,3104.0,1.10422904]
[1764783143783,1.1509,3104.1,3104.0,2.36752904]
[1764783144288,1.1509,3104.1,3104.0,2.37124278]
[1764783145585,1.1509,3104.1,3104.0,0.00854278]
[1764783145586,2.36,3104.1,3104.0,0.00854278]
[1764783145783,2.36,3104.1,3104.0,0.00606036]
[1764783146278,2.36,3104.1,3104.0,1.10546036]
[1764783146481,2.36,3104.1,3104.0,0.00606036]
[1764783147787,2.36,3104.1,3104.0,1.10546036]
[1764783147986,2.36,3104.1,3104.0,0.00606036]
[1764783148192,3.0632636,3104.1,3104.0,0.00606036]
[1764783148882,2.36,3104.1,3104.0,0.00606036]
[1764783149290,3.06343351,3104.1,3104.0,0.00606036]
[1764783150481,3.06343351,3104.1,3104.0,1.10546036]
[1764783151086,3.06343351,3104.1,3104.0,0.00606036]
[1764783153090,3.38806159,3104.1,3104.0,0.00606036]
[1764783153288,2.2196,3103.3,3103.2,3.2078]
[1764783153484,1.0904,3103.1,3103.0,2.8886]
[1764783153785,2.2196,3103.1,3103.0,1.0528]
[1764783153986,2.2196,3103.1,3102.5,0.7088]
[1764783154377,2.22710451,3103.1,3102.5,0.71591689]
[1764783154997,3.2078,3103.0,3102.5,0.71591689]
[1764783155190,1.0904,3102.6,3102.5,2.89571689]
[1764783155783,2.2196,3102.6,3102.5,0.00711689]
[1764783155987,5.4274,3102.6,3102.5,0.00711689]
[1764783156691,3.2078,3102.6,3102.5,2.84251689]
[1764783156894,4.2982,3102.6,3102.5,2.84251689]
[1764783158082,5.4274,3102.6,3102.5,0.00711689]
[1764783159389,5.4274,3102.6,3101.7,3.2078]
[1764783159390,2.0635,3101.8,3101.7,5.201]
[1764783159588,2.0635,3101.6,3101.5,1.6406]
[1764783160392,3.2078,3102.0,3101.5,2.65279262]
[1764783163293,3.2078,3102.0,3101.9,1.9932]
[1764783163796,3.2078,3102.4,3102.3,1.9932]
[1764783164294,0.00750451,3103.1,3102.8,1.9932]
[1764783164295,4.2822,3102.9,3102.8,1.9932]
[1764783164497,3.2078,3102.9,3102.8,1.9932]
[1764783165100,5.2713,3102.9,3102.8,0.985]
[1764783165502,4.2822,3102.9,3102.8,1.9932]
[1764783166000,1.0744,3102.9,3102.8,1.9932]
[1764783167098,3.2078,3102.9,3102.3,5.201]
[1764783167505,5.2713,3102.9,3102.8,0.985]
[1764783167698,2.0635,3102.6,3102.5,2.5932]
[1764783167896,1.0744,3102.6,3102.5,2.5932]
[1764783168595,3.2078,3102.9,3102.5,2.5932]
[1764783168800,4.2822,3102.9,3102.8,1.9932]
[1764783169505,3.2078,3102.9,3102.8,1.9932]
[1764783169895,0.00750451,3103.1,3103.0,2.5932]
[1764783171501,3.2078,3103.7,3103.6,1.9932]
[1764783171900,4.2822,3103.7,3103.6,1.9932]
[1764783172101,3.2078,3103.7,3103.6,1.9932]
[1764783172806,3.21129413,3103.7,3103.6,1.9932]
[1764783173006,0.00349413,3103.7,3103.6,1.9932]
[1764783177212,2.0635,3103.6,3103.5,0.985]
[1764783177401,0.00349413,3103.7,3103.6,1.9932]
[1764783177602,1.07789413,3103.7,3103.6,1.9932]
[1764783178109,0.00349413,3103.7,3103.6,1.9932]
[1764783180307,1.2307421,3104.0,3103.6,1.9932]
[1764783180308,1.2307421,3104.0,3103.9,1.9932]
[1764783180609,3.2078,3104.5,3104.4,1.9932]
[1764783181006,5.8586,3104.5,3104.0,0.6]
[1764783181206,1.0744,3104.1,3104.0,2.5932]
[1764783181400,3.21020251,3104.5,3104.4,1.9932]
[1764783181907,5.27370251,3104.5,3104.4,0.985]
[1764783182210,5.86100251,3104.5,3104.4,0.985]
[1764783183315,5.86100251,3104.5,3104.0,0.6024698]
[1764783183502,1.0199,3104.1,3104.0,2.6446698]
[1764783184011,5.2247,3104.1,3104.0,0.0024698]
[1764783184611,5.38574,3104.1,3104.0,0.0024698]
[1764783186714,2.17798,3103.4,3103.3,0.00482904]
[1764783187013,0.16109,3103.3,3102.6,5.25]
[1764783187215,5.2247,3103.4,3103.3,2.0422]
[1764783187410,46.0247,3103.4,3103.3,2.0422]
[1764783187611,46.0247,3103.4,3103.3,0.00368384]
[1764783187915,5.2247,3103.4,3103.3,0.00368384]
[1764783188708,0.301,3101.4,3101.3,1.73487935]
[1764783188905,3.5088,3101.4,3100.5,0.613]
[1764783189110,3.5088,3101.4,3101.0,1.6685]
[1764783189111,0.1505,3101.1,3101.0,1.6685]
[1764783189506,3.2078,3101.4,3101.0,2.6552]
[1764783189707,0.30344232,3101.1,3101.0,2.658244]
[1764783189911,0.30344232,3101.1,3101.0,0.003044]
[1764783191211,0.15294232,3101.1,3101.0,0.616044]
[1764783191425,0.00244232,3101.1,3101.0,2.658244]
[1764783193712,3.20400535,3101.4,3101.3,2.0422]
[1764783194912,3.20801065,3101.4,3101.3,2.0422]
[1764783195118,0.03921065,3101.4,3101.3,2.0422]
[1764783197310,0.0040053,3101.4,3101.3,2.0422]
[1764783199113,0.0040053,3101.4,3101.3,5.8302]
[1764783199926,0.00483706,3101.5,3101.4,2.0422]
[1764783200109,3.2078,3101.9,3101.4,5.8302]
[1764783200311,3.2078,3101.9,3101.8,2.0422]
[1764783200822,3.2078,3102.7,3102.6,2.0422]
[1764783201016,3.2119914,3102.7,3102.6,2.0422]
[1764783201212,5.2288914,3102.7,3102.6,2.0422]
[1764783201516,4.2318914,3102.7,3102.6,2.0422]
[1764783201916,1.0199,3102.4,3102.3,2.04703706]
[1764783202318,3.2119914,3102.7,3102.3,2.04703706]
[1764783203522,5.2288914,3102.7,3102.6,2.0422]
[1764783203815,3.2119914,3102.7,3102.6,2.0422]
[1764783204126,5.2288914,3102.7,3102.6,2.0422]
[1764783204515,0.0041914,3102.7,3102.6,2.0422]
[1764783204724,3.2078,3103.9,3103.4,2.0422]
[1764783205013,3.2078,3104.4,3103.8,2.0422]
[1764783205219,5.2247,3104.4,3104.3,1.0555]
[1764783205421,5.2247,3104.4,3103.6,3.2078]
[1764783205621,5.2247,3104.4,3104.0,3.2078]
[1764783205622,2.0169,3104.4,3104.0,3.2078]
[1764783205818,3.21263706,3104.3,3103.7,0.00483706]
[1764783206320,1.0199,3103.8,3103.7,1.06033706]
[1764783206523,1.0199,3103.8,3103.7,2.04703706]
[1764783206722,2.0169,3103.8,3103.7,0.00483706]
[1764783207018,2.0169,3103.8,3103.7,1.06033706]
[1764783207225,2.0169,3103.8,3103.7,0.00483706]
[1764783210526,2.0169,3103.8,3103.7,1.06033706]
[1764783210927,2.0169,3103.8,3103.7,0.00483706]
[1764783213835,2.0169,3103.8,3103.7,3.706e-05]
[1764783217228,2.17796,3103.8,3103.7,3.706e-05]
[1764783219340,2.88298739,3103.8,3103.7,3.706e-05]
[1764783219839,2.9055,3102.9,3102.8,5.2952]
[1764783220040,2.9055,3102.9,3102.8,3.788]
[1764783220237,4.6631,3103.3,3103.2,2.9777]
[1764783220545,3.2078,3103.3,3103.2,2.9777]
[1764783220837,3.98795,3104.0,3103.2,6.18876514]
[1764783221034,3.98795,3104.0,3103.3,3.788]
[1764783221338,40.8,3103.9,3103.3,3.788]
[1764783222642,3.98795,3104.0,3103.3,3.788]
[1764783222840,1.4553,3103.4,3103.3,6.7657]
[1764783223342,44.78795,3104.0,3103.3,6.7657]
[1764783223839,3.98795,3104.0,3103.3,6.7657]
[1764783224140,44.78795,3104.0,3103.3,6.7657]
[1764783224638,3.98795,3104.0,3103.3,6.7657]
[1764783225936,1.4553,3103.5,3103.4,6.7657]
[1764783227343,2.9055,3103.5,3103.4,6.7657]
[1764783229838,44.78795,3104.0,3103.5,0.9264]
[1764783230144,3.93968642,3103.9,3103.8,2.9777]
[1764783230641,2.48948642,3103.9,3103.8,2.9777]
[1764783230943,0.00483706,3104.3,3104.2,2.9777]
[1764783231240,2.49486412,3104.3,3104.2,2.9777]
[1764783233445,1.03956412,3104.3,3104.2,6.7657]
[1764783233650,2.91033706,3104.3,3104.2,6.7657]
[1764783233949,0.00483706,3104.3,3104.2,6.7657]
[1764783234641,0.00323808,3104.4,3104.3,2.9777]
[1764783234851,6.1133,3105.3,3105.2,1.5072]
[1764783235049,7.14844518,3105.3,3104.6,3.788]
[1764783235249,3.94064518,3105.2,3105.1,1.5072]
[1764783235947,3.94329115,3105.2,3105.1,1.5072]
[1764783236149,1.4553,3104.9,3104.8,2.98253706]
[1764783236351,2.9055,3104.9,3104.8,1.51203706]
[1764783236949,2.9055,3104.9,3104.8,2.98253706]
[1764783240354,6.2743,3104.9,3104.8,0.00483706]
[1764783240659,6.98174488,3104.9,3104.8,2.9777]
[1764783241051,1.4553,3104.2,3104.1,6.1855]
[1764783241561,2.9055,3104.5,3104.4,2.9777]
[1764783242156,1.4553,3104.5,3104.4,2.9777]
[1764783242752,2.9055,3104.5,3104.4,2.9777]
[1764783243257,1.4553,3104.5,3104.4,2.9777]
[1764783243456,1.4217,3104.5,3104.4,2.9777]
[1764783243862,2.9592,3104.5,3104.4,2.9777]
[1764783244070,3.7559,3104.5,3104.1,3.2078]
[1764783244271,4.0045,3104.5,3104.1,6.0407]
[1764783244468,2.3491,3105.0,3104.9,1.3685]
[1764783244770,2.9592,3104.6,3104.5,6.0407]
[1764783245477,1.4217,3104.6,3104.5,6.9005]
[1764783246676,2.9592,3104.6,3104.5,2.8329]
[1764783247776,2.9592,3104.2,3104.1,6.0407]
[1764783248076,1.4217,3104.6,3104.5,3.6927]
[1764783248976,2.9592,3104.6,3104.5,3.6927]
[1764783249179,2.9592,3104.6,3104.5,2.8329]
[1764783249377,2.9592,3104.6,3104.5,1.3685]
[1764783249883,2.9592,3104.2,3104.1,4.5763]
[1764783250070,2.9592,3104.2,3104.1,6.0407]
[1764783250372,2.9592,3104.2,3104.1,3.2078]
[1764783251476,2.9592,3104.2,3104.1,4.5763]
[1764783252473,2.9592,3104.2,3104.1,6.0407]
[1764783252979,2.9592,3104.2,3104.1,2.8329]
[1764783256482,2.9592,3104.2,3104.1,1.3685]
[1764783256682,3.7573,3104.0,3103.9,3.788]
[1764783257577,3.7573,3104.0,3103.9,6.6209]
[1764783257880,2.9592,3104.4,3104.3,1.3685]
[1764783258082,3.66701471,3104.4,3104.3,2.8329]
[1764783258780,2.12951471,3104.4,3104.3,2.8329]
[1764783258983,3.66701471,3104.4,3104.3,2.8329]
[1764783259175,2.12951471,3104.4,3104.3,2.8329]
[1764783260175,2.45553792,3104.4,3104.3,2.8329]
[1764783260582,1.4217,3105.0,3104.9,2.8329]
[1764783260783,4.79172511,3105.0,3104.9,1.3685]
[1764783262077,4.79172511,3105.0,3104.6,3.788]
[1764783262376,4.79172511,3105.0,3104.6,5.1565]
[1764783262377,2.9592,3104.7,3104.6,5.1565]
[1764783262587,3.66761104,3104.7,3104.6,6.6209]
[1764783263174,3.66761104,3104.7,3104.6,3.788]
[1764783263375,3.99370542,3104.7,3104.6,3.788]
[1764783264485,1.03450542,3104.7,3104.0,3.6927]
[1764783264676,1.4362,3104.1,3104.0,3.6927]
[1764783264872,1.4362,3104.1,3104.0,0.8598]
[1764783265073,2.14488117,3104.1,3104.0,0.8598]
[1764783265272,2.471044,3104.1,3104.0,0.8598]
[1764783265471,1.4362,3103.9,3103.8,3.21263706]
[1764783265677,2.47102115,3103.9,3103.8,3.21263706]
[1764783265882,2.47103046,3103.9,3103.8,0.00483706]
[1764783266083,2.47103046,3103.9,3103.2,0.00326514]
[1764783266084,1.4362,3103.3,3103.2,0.00326514]
[1764783266284,2.47121861,3103.3,3103.2,0.00326514]
[1764783266479,1.4362,3102.6,3102.2,4.94267935]
[1764783266780,1.4362,3102.6,3101.8,3.2078]
[1764783266781,0.16113,3102.5,3101.8,3.2078]
[1764783266974,3.2078,3102.0,3101.9,1.3685]
[1764783267179,1.4362,3102.1,3102.0,2.2283]
[1764783267375,4.644,3102.1,3102.0,0.545636]
[1764783267578,4.64777998,3102.1,3102.0,0.00227981]
[1764783267777,5.35491439,3102.1,3102.0,0.00227981]
[1764783268275,5.68100125,3102.1,3102.0,0.00227981]
[1764783268477,4.97386795,3102.1,3102.0,0.00227981]
[1764783268679,4.64777998,3102.1,3102.0,0.00227981]
[1764783268875,3.21157998,3102.1,3102.0,3.69497981]
[1764783269282,4.24387998,3102.1,3102.0,3.69497981]
[1764783269483,5.27617998,3102.1,3102.0,2.23057981]
[1764783270582,5.27617998,3102.1,3102.0,0.00227981]
[1764783271886,2.0646,3101.7,3101.6,0.00483706]
[1764783272978,5.2724,3101.7,3101.6,0.00754435]
[1764783273182,5.2724,3101.7,3101.6,1.51484435]
[1764783273383,0.00377998,3102.1,3102.0,3.7574]
[1764783273582,2.52277998,3102.1,3102.0,2.3555]
[1764783273885,1.26327998,3102.1,3102.0,3.7574]
[1764783274290,2.52277998,3102.1,3102.0,2.3555]
[1764783274592,2.52277998,3102.1,3102.0,3.7574]
[1764783274783,1.26327998,3102.1,3102.0,3.7574]
[1764783275286,0.00483706,3102.3,3102.2,2.9092]
[1764783275589,3.2078,3103.1,3103.0,2.3555]
[1764783275590,5.7268,3103.1,3103.0,2.3555]
[1764783275889,5.7268,3103.1,3103.0,0.8482]
[1764783276193,2.519,3102.6,3102.5,3.7574]
[1764783276392,2.52152178,3102.6,3102.5,3.7574]
[1764783276892,1.26202178,3102.6,3102.5,3.7574]
[1764783277092,0.00252178,3102.6,3102.5,3.7574]
[1764783279398,0.00483706,3102.9,3102.8,2.7697]
[1764783279591,2.37823706,3102.9,3102.8,1.3632]
[1764783279993,1.19153706,3102.9,3102.8,2.7697]
[1764783280199,2.37823706,3102.9,3102.8,1.3632]
[1764783280386,2.3806878,3102.9,3102.8,1.3632]
[1764783281093,1.1939878,3102.9,3102.8,2.7697]
[1764783283296,2.3806878,3102.9,3102.8,2.7697]
[1764783283499,1.1939878,3102.9,3102.8,2.7697]
[1764783284505,0.0072878,3102.9,3102.8,2.7697]
[1764783285593,4.3945,3103.5,3103.4,2.7697]
[1764783285793,5.5812,3103.5,3103.4,2.7697]
[1764783286504,2.3734,3103.5,3103.4,2.7697]
[1764783286806,2.3759758,3103.5,3103.4,2.7697]
[1764783287493,0.0025758,3103.5,3103.4,2.7697]
[1764783288099,0.00483706,3103.8,3103.7,1.3632]
[1764783288308,0.00483706,3103.8,3103.7,2.7697]
[1764783289201,0.00880993,3103.8,3103.7,2.7697]
[1764783291615,1.1955,3104.3,3104.2,2.7697]
[1764783292001,2.391,3104.3,3104.2,2.7697]
[1764783292197,2.391,3104.3,3104.2,1.3632]
[1764783292404,1.1955,3104.1,3104.0,3.6552]
[1764783292603,1.198745,3104.1,3104.0,3.65831172]
[1764783293008,0.003245,3104.1,3104.0,3.65831172]
[1764783293807,0.7181,3105.0,3104.0,3.65831172]
[1764783293808,5.5988,3105.5,3105.0,0.8855]
[1764783294004,2.391,3105.5,3105.4,1.3632]
[1764783294310,2.391,3105.6,3105.5,2.2487]
[1764783294610,2.391,3105.6,3105.5,0.8855]
[1764783294808,2.39327868,3105.6,3105.5,0.8855]
[1764783295214,2.391,3105.1,3105.0,2.2487]
[1764783297815,2.391,3105.0,3104.9,3.21263706]
[1764783298006,2.391,3105.0,3104.9,0.00483706]
[1764783298207,2.391,3105.0,3104.9,1.36803706]
[1764783298608,2.391,3105.0,3104.9,0.00483706]
[1764783299114,5.5988,3105.0,3104.9,0.00483706]
[1764783301212,2.391,3105.0,3104.9,0.00483706]
[1764783301612,5.5988,3105.0,3104.9,0.00483706]
[1764783301821,5.7598,3105.0,3104.9,0.00483706]
[1764783302113,2.3814,3104.2,3104.1,4.571]
[1764783302414,0.05606758,3105.4,3104.0,0.00311172]
[1764783302415,2.3814,3104.1,3104.0,0.00311172]
[1764783303411,2.3814,3104.1,3104.0,2.14181172]
[1764783304410,2.3814,3104.1,3104.0,0.80741172]
[1764783304610,2.3814,3104.1,3102.4,1.73487935]
[1764783304611,0.1611,3103.0,3102.5,3.5717]
[1764783304815,1.674,3102.6,3102.0,0.8043]
[1764783305013,3.2078,3102.8,3102.5,0.8043]
[1764783305220,3.2078,3102.8,3102.7,2.7674]
[1764783305516,4.8818,3102.8,3102.7,0.00303725]
[1764783305822,4.88442051,3102.8,3102.7,0.00303725]
[1764783306214,5.59374236,3102.8,3102.7,0.00303725]
[1764783306518,1.674,3102.5,3102.4,0.00483706]
[1764783306717,2.97631882,3102.5,3102.4,0.00483706]
[1764783306918,3.30057057,3102.5,3101.5,4.0121]
[1764783307113,3.37154051,3102.8,3101.5,4.0121]
[1764783307114,4.0448,3102.1,3102.0,2.1387]
[1764783307314,3.2078,3102.5,3102.0,3.5717]
[1764783307724,3.2078,3102.5,3102.0,3.57410011]
[1764783308514,4.0448,3102.5,3102.4,1.3344]
[1764783308720,0.00262051,3102.8,3102.7,2.7674]
[1764783310225,0.83962051,3102.8,3102.7,2.7674]
[1764783310420,0.00262051,3102.8,3102.7,2.7674]
[1764783311717,1.674,3102.6,3102.5,2.1387]
[1764783311916,1.674,3102.6,3102.5,0.8043]
[1764783312923,1.674,3102.6,3102.5,2.1387]
[1764783313118,0.837,3102.6,3102.5,2.1387]
[1764783313324,0.837,3102.6,3102.5,3.5717]
[1764783313528,1.674,3102.1,3102.0,2.14110011]
[1764783313835,4.8818,3102.1,3102.0,0.00240011]
[1764783314221,0.99814,3102.3,3102.2,1.3344]
[1764783314522,3.2078,3102.5,3102.2,2.7674]
[1764783315126,0.837,3102.3,3102.2,2.7674]
[1764783316329,0.837,3102.3,3102.2,1.3344]
[1764783316531,1.674,3102.1,3102.0,0.80670011]
[1764783316832,4.8818,3102.1,3102.0,0.80670011]
[1764783317026,4.8818,3102.1,3102.0,3.57410011]
[1764783317027,3.2078,3102.1,3102.0,3.57410011]
[1764783317233,4.8818,3102.1,3102.0,0.00240011]
[1764783317933,5.04295,3102.1,3102.0,0.00240011]
[1764783320029,5.04295,3102.1,3102.0,2.14110011]
[1764783320236,4.20595,3102.1,3102.0,2.14110011]
[1764783320729,3.2078,3102.1,3102.0,3.57410011]
[1764783320934,4.0448,3102.1,3102.0,3.57410011]
[1764783321728,3.2078,3102.5,3102.4,2.7674]
[1764783321929,4.8818,3102.5,3102.0,0.80670011]
[1764783322630,4.8818,3102.5,3102.4,1.3344]
[1764783323037,4.8818,3102.5,3102.0,0.80670011]
[1764783323838,4.8818,3102.5,3102.0,4.59470011]
[1764783325134,3.2078,3102.5,3102.4,2.7674]
[1764783325336,1.83512,3102.6,3102.5,0.8043]
[1764783325538,1.83512,3102.6,3102.5,2.1387]
[1764783326939,1.83512,3102.6,3102.5,3.5717]
[1764783327138,0.99812,3102.6,3102.5,3.5717]
[1764783327338,1.83512,3102.6,3102.5,2.1387]